[Event "23rd Hoogeveen Open 2019"]
[Site "Hoogeveen"]
[Date "2019.10.21"]
[Round "4.6"]
[White "Vrolijk, Liam"]
[Black "Dixit, Nikhil"]
[Result "1/2-1/2"]
[ECO "E90"]
[WhiteElo "2478"]
[BlackElo "2358"]
[Annotator "ChessBase"]
[PlyCount "46"]
[EventDate "2019.10.19"]
[EventType "swiss"]
[EventCountry "NED"]
[SourceTitle "playchess.com"]
[Source "ChessBase"]
[SourceQuality "1"]
[TimeControl "40/5400+30:1800+30"]

1. d4 {[%emt 0:00:00]} Nf6 {[%emt 0:02:45]} 2. c4 {[%emt 0:00:00]} g6 {[%emt 0:00:09]} 3. Nc3 {[%emt 0:00:10]} Bg7 {[%emt 0:00:02]} 4. e4 {[%emt 0:00:08]} d6 {[%emt 0:00:12]} 5. h3 {[%emt 0:00:06]} O-O {[%emt 0:00:27]} 6. Be3 {[%emt 0:00:06]} c6 {[%emt 0:02:59]} 7. Nf3 {[%emt 0:04:51]} a6 {[%emt 0:04:20]} 8. c5 {[%emt 0:03:52]} dxc5 {[%emt 0:04:01]} 9. dxc5 {[%emt 0:01:49]} Qa5 {[%emt 0:00:18]} 10. Nd2 {[%emt 0:05:41]} Nfd7 {[%emt 0:06:54]} 11. Rc1 {[%emt 0:05:25]} Rd8 {[%emt 0:06:58]} 12. Qc2 {[%emt 0:01:40]} Nf8 {[%emt 0:03:38]} 13. Nc4 {[%emt 0:04:07]} Qc7 {[%emt 0:02:35]} 14. Nb6 {[%emt 0:00:42]} Ra7 {[%emt 0:00:16]} 15. Bc4 {[%emt 0:00:50]} Bd4 {[%emt 0:07:01]} 16. Bxd4 {[%emt 0:12:19]} Rxd4 {[%emt 0:02:20]} 17. O-O {[%emt 0:05:07]} e5 {[%emt 0:14:50]} 18. Rfd1 {[%emt 0:09:45]} Be6 {[%emt 0:02:36]} 19. Rxd4 {[%emt 0:12:11]} exd4 {[%emt 0:00:37]} 20. Ne2 {[%emt 0:00:04]} Qe5 {[%emt 0:05:05]} 21. Bd3 {[%emt 0:01:53]} g5 {[%emt 0:07:30]} 22. Qa4 {[%emt 0:13:48]} Nbd7 {[%emt 0:02:55]} 23. Qxd4 {[%emt 0:06:06]} Bxa2 {[%emt 0:04:22]} 1/2-1/2

[Event "23rd Hoogeveen Open 2019"]
[Site "Hoogeveen"]
[Date "2019.10.21"]
[Round "4.7"]
[White "Gomes, Mary Ann"]
[Black "Beerdsen, Thomas"]
[Result "1/2-1/2"]
[ECO "A34"]
[WhiteElo "2268"]
[BlackElo "2472"]
[Annotator "ChessBase"]
[PlyCount "48"]
[EventDate "2019.10.19"]
[EventType "swiss"]
[EventCountry "NED"]
[SourceTitle "playchess.com"]
[Source "ChessBase"]
[SourceQuality "1"]
[TimeControl "40/5400+30:1800+30"]

1. Nf3 {[%emt 0:00:05]} c5 {[%emt 0:00:00]} 2. c4 {[%emt 0:00:26]} Nf6 {[%emt 0:00:48]} 3. g3 {[%emt 0:00:27]} Nc6 {[%emt 0:00:43]} 4. Bg2 {[%emt 0:00:11]} e5 {[%emt 0:01:33]} 5. Nc3 {[%emt 0:00:36]} d6 {[%emt 0:01:16]} 6. O-O {[%emt 0:00:10]} g6 {[%emt 0:03:11]} 7. a3 {[%emt 0:00:07]} Bg7 {[%emt 0:00:17]} 8. b4 {[%emt 0:07:35]} O-O {[%emt 0:04:15]} 9. b5 {[%emt 0:05:30]} Na5 {[%emt 0:05:40]} 10. d3 {[%emt 0:00:17]} e4 {[%emt 0:02:11]} 11. Ne1 {[%emt 0:06:28]} exd3 {[%emt 0:11:34]} 12. exd3 {[%emt 0:00:10]} Bg4 {[%emt 0:00:55]} 13. Qc2 {[%emt 0:09:01]} Re8 {[%emt 0:03:54]} 14. Bb2 {[%emt 0:02:42]} Bf5 {[%emt 0:06:06]} 15. Nd5 {[%emt 0:03:33]} Nxd5 {[%emt 0:03:38]} 16. Bxd5 {[%emt 0:00:17]} Qe7 {[%emt 0:05:54]} 17. Bxg7 {[%emt 0:03:22]} Kxg7 {[%emt 0:00:11]} 18. Nf3 {[%emt 0:09:30]} Qf6 {[%emt 0:00:46]} 19. Kg2 {[%emt 0:01:32]} Rad8 {[%emt 0:03:05]} 20. Rae1 {[%emt 0:03:00]} b6 {[%emt 0:01:24]} 21. Re3 {[%emt 0:00:54]} Be6 {[%emt 0:06:44]} 22. Bxe6 {[%emt 0:00:32]} Rxe6 {[%emt 0:00:52]} 23. Rfe1 {[%emt 0:01:48]} Rde8 {[%emt 0:02:47]} 24. Nd2 {[%emt 0:01:22]} h6 {[%emt 0:10:46]} 1/2-1/2

[Event "23rd Hoogeveen Open 2019"]
[Site "Hoogeveen"]
[Date "2019.10.21"]
[Round "4.10"]
[White "Giacomini, Hector"]
[Black "Jonkman, Harmen"]
[Result "1/2-1/2"]
[ECO "A06"]
[WhiteElo "2145"]
[BlackElo "2383"]
[Annotator "NA"]
[PlyCount "47"]
[EventDate "2019.10.19"]
[EventType "swiss"]
[EventCountry "NED"]
[SourceTitle "playchess.com"]
[Source "ChessBase"]
[SourceQuality "1"]
[TimeControl "40/5400+30:1800+30"]

1. Nf3 {[%emt 0:02:17]} d5 {[%emt 0:00:00]} 2. e3 {[%emt 0:00:19]} g6 {[%emt 0:01:04]} 3. d4 {[%emt 0:00:23]} Bg7 {[%emt 0:00:08]} 4. c4 {[%emt 0:00:14]} e6 {[%emt 0:00:46]} 5. Nc3 {[%emt 0:00:31]} Ne7 {[%emt 0:00:30]} 6. Be2 {[%emt 0:01:29]} Nd7 {[%emt 0:01:50]} 7. O-O {[%emt 0:00:41]} O-O {[%emt 0:00:34]} 8. e4 {[%emt 0:03:11]} b6 {[%emt 0:34:02]} 9. Bg5 {[%emt 0:05:48]} Bb7 {[%emt 0:01:59]} 10. exd5 {[%emt 0:12:19]} exd5 {[%emt 0:02:01]} 11. Bxe7 {[%emt 0:01:03]} Qxe7 {[%emt 0:00:06]} 12. Nxd5 {[%emt 0:00:08]} Bxd5 {[%emt 0:11:31]} 13. cxd5 {[%emt 0:00:06]} Rad8 {[%emt 0:09:02]} 14. Bc4 {[%emt 0:04:02]} Qb4 {[%emt 0:05:41]} 15. Bb3 {[%emt 0:03:22]} a5 {[%emt 0:02:39]} 16. Rc1 {[%emt 0:01:15]} a4 {[%emt 0:03:18]} 17. Rc4 {[%emt 0:03:18]} Qb5 {[%emt 0:00:04]} 18. Rxa4 {[%emt 0:00:53]} Nf6 {[%emt 0:00:02]} 19. Qd2 {[%emt 0:07:07]} Nxd5 {[%emt 0:00:17]} 20. Rc4 {[%emt 0:01:19]} Rd6 {[%emt 0:03:48]} 21. Re1 {[%emt 0:02:09]} Rfd8 {[%emt 0:02:07]} 22. g3 {[%emt 0:02:34]} Rf6 {[%emt 0:04:29]} 23. Ne5 {[%emt 0:02:01]} h5 {[%emt 0:00:05]} 24. h4 {[%emt 0:06:53]} 1/2-1/2

[Event "23rd Hoogeveen Open 2019"]
[Site "Hoogeveen"]
[Date "2019.10.21"]
[Round "4.11"]
[White "Vestby-Ellingsen, Mads"]
[Black "Sparenberg, Erik"]
[Result "1-0"]
[ECO "A45"]
[WhiteElo "2363"]
[BlackElo "2142"]
[Annotator "NA"]
[PlyCount "75"]
[EventDate "2019.10.19"]
[EventType "swiss"]
[EventCountry "NED"]
[SourceTitle "playchess.com"]
[Source "ChessBase"]
[SourceQuality "1"]
[TimeControl "40/5400+30:1800+30"]

1. d4 {[%emt 0:01:20]} Nf6 {[%emt 0:00:30]} 2. Bg5 {[%emt 0:01:32]} e6 {[%emt 0:03:42]} 3. e4 {[%emt 0:00:24]} h6 {[%emt 0:00:18]} 4. Bxf6 {[%emt 0:00:14]} Qxf6 {[%emt 0:00:02]} 5. c3 {[%emt 0:00:29]} g6 {[%emt 0:07:33]} 6. Bd3 {[%emt 0:00:45]} Bg7 {[%emt 0:00:18]} 7. Ne2 {[%emt 0:00:30]} d6 {[%emt 0:03:01]} 8. O-O {[%emt 0:00:25]} e5 {[%emt 0:03:19]} 9. f4 {[%emt 0:01:28]} exd4 {[%emt 0:03:23]} 10. cxd4 {[%emt 0:00:53]} O-O {[%emt 0:02:05]} 11. Nbc3 {[%emt 0:11:06]} Bg4 {[%emt 0:17:45]} 12. Qd2 {[%emt 0:28:53]} Bxe2 {[%emt 0:04:09]} 13. Nxe2 {[%emt 0:01:12]} Nd7 {[%emt 0:06:55]} 14. f5 {[%emt 0:10:36]} g5 {[%emt 0:02:03]} 15. Rad1 {[%emt 0:01:55]} c5 {[%emt 0:11:10]} 16. Bb5 {[%emt 0:08:07]} Nb6 {[%emt 0:02:01]} 17. e5 {[%emt 0:00:36]} dxe5 {[%emt 0:00:26]} 18. dxc5 {[%emt 0:00:13]} Rfd8 {[%emt 0:01:50]} 19. Qe3 {[%emt 0:00:49]} Nd5 {[%emt 0:04:02]} 20. Qe4 {[%emt 0:00:21]} Nf4 {[%emt 0:01:01]} 21. Nc3 {[%emt 0:01:25]} Bf8 {[%emt 0:03:31]} 22. g3 {[%emt 0:04:11]} Bxc5+ {[%emt 0:00:44]} 23. Kh1 {[%emt 0:00:11]} Rxd1 {[%emt 0:01:06]} 24. Nxd1 {[%emt 0:00:44]} Qb6 {[%emt 0:06:00]} 25. Nc3 {[%emt 0:11:58]} Nh3 {[%emt 0:05:22]} 26. Kg2 {[%emt 0:03:00]} Nf2 {[%emt 0:02:39]} 27. Qe2 {[%emt 0:00:08]} Rd8 {[%emt 0:04:50]} 28. Na4 {[%emt 0:02:21]} Qd6 {[%emt 0:03:31]} 29. Nxc5 {[%emt 0:01:05]} Qd5+ {[%emt 0:00:30]} 30. Kxf2 {[%emt 0:00:30]} Qxc5+ {[%emt 0:00:09]} 31. Kg2 {[%emt 0:00:24]} e4 {[%emt 0:00:52]} 32. Kh3 {[%emt 0:02:11]} e3 {[%emt 0:00:39]} 33. Bd3 {[%emt 0:05:01]} Rd4 {[%emt 0:00:29]} 34. Rd1 {[%emt 0:01:25]} Qd5 {[%emt 0:00:31]} 35. Qxe3 {[%emt 0:00:34]} g4+ {[%emt 0:00:30]} 36. Kh4 {[%emt 0:00:04]} Qd8+ {[%emt 0:00:31]} 37. Kh5 {[%emt 0:00:07]} Qd6 {[%emt 0:00:30]} 38. Qxh6 {[%emt 0:00:47]} 1-0

[Event "23rd Hoogeveen Open 2019"]
[Site "Hoogeveen"]
[Date "2019.10.21"]
[Round "4.12"]
[White "Blagojevic, Tijana"]
[Black "Okkes, Menno"]
[Result "1/2-1/2"]
[ECO "B51"]
[WhiteElo "2151"]
[BlackElo "2326"]
[Annotator "NA"]
[PlyCount "56"]
[EventDate "2019.10.19"]
[EventType "swiss"]
[EventCountry "NED"]
[SourceTitle "playchess.com"]
[Source "ChessBase"]
[SourceQuality "1"]
[TimeControl "40/5400+30:1800+30"]

1. e4 {[%emt 0:00:00]} c5 {[%emt 0:00:00]} 2. Nf3 {[%emt 0:00:00]} d6 {[%emt 0:00:00]} 3. Bb5+ {[%emt 0:00:00]} Nd7 {[%emt 0:00:00]} 4. O-O {[%emt 0:00:00]} a6 {[%emt 0:00:04]} 5. Bd3 {[%emt 0:00:00]} Ngf6 {[%emt 0:06:47]} 6. Re1 {[%emt 0:00:12]} e5 {[%emt 0:00:44]} 7. a4 {[%emt 0:01:51]} Be7 {[%emt 0:00:09]} 8. c3 {[%emt 0:00:19]} O-O {[%emt 0:00:23]} 9. Bc2 {[%emt 0:00:35]} b6 {[%emt 0:02:24]} 10. d4 {[%emt 0:00:11]} Bb7 {[%emt 0:00:36]} 11. Nbd2 {[%emt 0:04:39]} Re8 {[%emt 0:01:19]} 12. Nf1 {[%emt 0:06:51]} Bf8 {[%emt 0:00:17]} 13. d5 {[%emt 0:02:05]} g6 {[%emt 0:02:08]} 14. Bg5 {[%emt 0:08:04]} Be7 {[%emt 0:02:23]} 15. Qd2 {[%emt 0:01:53]} Ng4 {[%emt 0:03:09]} 16. Bxe7 {[%emt 0:00:43]} Qxe7 {[%emt 0:00:15]} 17. h3 {[%emt 0:00:21]} Ngf6 {[%emt 0:00:09]} 18. c4 {[%emt 0:05:29]} a5 {[%emt 0:08:04]} 19. Ra3 {[%emt 0:01:31]} Ba6 {[%emt 0:01:43]} 20. Rc3 {[%emt 0:03:09]} Nh5 {[%emt 0:03:45]} 21. g3 {[%emt 0:03:20]} Kh8 {[%emt 0:01:08]} 22. Ng5 {[%emt 0:03:34]} f6 {[%emt 0:02:42]} 23. Ne6 {[%emt 0:00:21]} Nf8 {[%emt 0:00:18]} 24. Nxf8 {[%emt 0:00:56]} Rxf8 {[%emt 0:01:21]} 25. Bd1 {[%emt 0:02:12]} Ng7 {[%emt 0:00:28]} 26. f4 {[%emt 0:02:47]} Rae8 {[%emt 0:02:17]} 27. Kh2 {[%emt 0:04:39]} Bc8 {[%emt 0:02:18]} 28. Qg2 {[%emt 0:00:18]} Bd7 {[%emt 0:21:44]} 1/2-1/2

[Event "23rd Hoogeveen Open 2019"]
[Site "Hoogeveen"]
[Date "2019.10.21"]
[Round "4.14"]
[White "De Boer, Bas"]
[Black "Romanishin, Oleg M"]
[Result "1/2-1/2"]
[ECO "E60"]
[WhiteElo "2142"]
[BlackElo "2441"]
[Annotator "NA"]
[PlyCount "75"]
[EventDate "2019.10.19"]
[EventType "swiss"]
[EventCountry "NED"]
[SourceTitle "playchess.com"]
[Source "ChessBase"]
[SourceQuality "1"]
[TimeControl "40/5400+30:1800+30"]

1. Nf3 {[%emt 0:00:00]} Nf6 {[%emt 0:05:38]} 2. c4 {[%emt 0:00:00]} d6 {[%emt 0:03:06]} 3. d4 {[%emt 0:00:55]} g6 {[%emt 0:00:20]} 4. g3 {[%emt 0:00:35]} c6 {[%emt 0:04:24]} 5. Bg2 {[%emt 0:02:29]} Bf5 {[%emt 0:01:31]} 6. O-O {[%emt 0:01:59]} Bg7 {[%emt 0:01:01]} 7. Nc3 {[%emt 0:05:50]} Ne4 {[%emt 0:06:51]} 8. Nb1 {[%emt 0:12:30]} Qb6 {[%emt 0:11:38]} 9. b3 {[%emt 0:01:38]} O-O {[%emt 0:12:20]} 10. Bb2 {[%emt 0:00:23]} d5 {[%emt 0:00:41]} 11. cxd5 {[%emt 0:02:50]} cxd5 {[%emt 0:00:06]} 12. Ne5 {[%emt 0:01:16]} Rc8 {[%emt 0:12:09]} 13. g4 {[%emt 0:07:51]} Be6 {[%emt 0:02:22]} 14. e3 {[%emt 0:00:07]} Nd7 {[%emt 0:05:39]} 15. Nd3 {[%emt 0:02:59]} Rc7 {[%emt 0:05:50]} 16. f3 {[%emt 0:02:50]} Nd6 {[%emt 0:00:24]} 17. Nc3 {[%emt 0:00:43]} Rac8 {[%emt 0:01:35]} 18. Na4 {[%emt 0:03:56]} Qb5 {[%emt 0:08:26]} 19. Rf2 {[%emt 0:00:32]} Nf8 {[%emt 0:10:11]} 20. Bf1 {[%emt 0:02:36]} Qe8 {[%emt 0:00:15]} 21. Nf4 {[%emt 0:01:02]} Bh6 {[%emt 0:02:06]} 22. Nc5 {[%emt 0:04:14]} Bxf4 {[%emt 0:00:49]} 23. exf4 {[%emt 0:00:07]} Bd7 {[%emt 0:00:12]} 24. Bd3 {[%emt 0:01:52]} Bb5 {[%emt 0:00:23]} 25. Bb1 {[%emt 0:01:02]} b6 {[%emt 0:00:23]} 26. Nd3 {[%emt 0:01:05]} a5 {[%emt 0:02:16]} 27. Qd2 {[%emt 0:01:04]} Nc4 {[%emt 0:00:42]} 28. bxc4 {[%emt 0:01:25]} dxc4 {[%emt 0:00:01]} 29. Nc5 {[%emt 0:00:54]} bxc5 {[%emt 0:00:20]} 30. dxc5 {[%emt 0:00:18]} Rxc5 {[%emt 0:00:49]} 31. Qc3 {[%emt 0:00:27]} f6 {[%emt 0:00:05]} 32. Bc2 {[%emt 0:01:03]} Ba4 {[%emt 0:00:53]} 33. Be4 {[%emt 0:00:43]} Ne6 {[%emt 0:02:18]} 34. Bc1 {[%emt 0:02:40]} Bc6 {[%emt 0:00:36]} 35. Bc2 {[%emt 0:00:50]} Ba4 {[%emt 0:00:37]} 36. Be4 {[%emt 0:01:24]} Bc6 {[%emt 0:00:02]} 37. Bc2 {[%emt 0:03:13]} Ba4 {[%emt 0:00:24]} 38. Be4 {[%emt 0:02:30]} 1/2-1/2

[Event "23rd Hoogeveen Open 2019"]
[Site "Hoogeveen"]
[Date "2019.10.21"]
[Round "4.15"]
[White "Van Foreest, Machteld"]
[Black "Manush Shah"]
[Result "0-1"]
[ECO "B19"]
[WhiteElo "2142"]
[BlackElo "2352"]
[Annotator "NA"]
[PlyCount "98"]
[EventDate "2019.10.19"]
[EventType "swiss"]
[EventCountry "NED"]
[SourceTitle "playchess.com"]
[Source "ChessBase"]
[SourceQuality "1"]
[TimeControl "40/5400+30:1800+30"]

1. e4 {[%emt 0:00:00]} c6 {[%emt 0:01:53]} 2. d4 {[%emt 0:00:14]} d5 {[%emt 0:00:12]} 3. Nd2 {[%emt 0:00:14]} dxe4 {[%emt 0:00:10]} 4. Nxe4 {[%emt 0:00:09]} Bf5 {[%emt 0:00:06]} 5. Ng3 {[%emt 0:00:03]} Bg6 {[%emt 0:00:07]} 6. h4 {[%emt 0:00:34]} h6 {[%emt 0:00:04]} 7. Nf3 {[%emt 0:00:02]} Nf6 {[%emt 0:00:09]} 8. h5 {[%emt 0:00:31]} Bh7 {[%emt 0:00:04]} 9. Bd3 {[%emt 0:00:04]} Bxd3 {[%emt 0:00:06]} 10. Qxd3 {[%emt 0:00:03]} e6 {[%emt 0:00:02]} 11. Bd2 {[%emt 0:00:18]} c5 {[%emt 0:00:08]} 12. Ne4 {[%emt 0:08:23]} Nc6 {[%emt 0:01:41]} 13. Bc3 {[%emt 0:13:16]} Nb4 {[%emt 0:05:11]} 14. Nxf6+ {[%emt 0:06:22]} gxf6 {[%emt 0:00:24]} 15. Bxb4 {[%emt 0:00:35]} cxb4 {[%emt 0:00:03]} 16. Qb5+ {[%emt 0:02:13]} Qd7 {[%emt 0:00:09]} 17. Qxd7+ {[%emt 0:00:03]} Kxd7 {[%emt 0:00:06]} 18. O-O-O {[%emt 0:00:55]} Rg8 {[%emt 0:04:06]} 19. g3 {[%emt 0:02:06]} Rc8 {[%emt 0:00:36]} 20. Rd3 {[%emt 0:04:46]} Bd6 {[%emt 0:02:38]} 21. Re1 {[%emt 0:04:30]} Rc7 {[%emt 0:05:09]} 22. Re2 {[%emt 0:04:09]} a5 {[%emt 0:00:41]} 23. Nd2 {[%emt 0:04:00]} Bf4 {[%emt 0:08:36]} 24. gxf4 {[%emt 0:13:47]} Rg1+ {[%emt 0:00:10]} 25. Nf1 {[%emt 0:00:02]} Rxf1+ {[%emt 0:00:01]} 26. Rd1 {[%emt 0:00:17]} Rxd1+ {[%emt 0:00:25]} 27. Kxd1 {[%emt 0:00:02]} Rc4 {[%emt 0:04:27]} 28. Rd2 {[%emt 0:00:14]} Kd6 {[%emt 0:00:09]} 29. Ke2 {[%emt 0:08:03]} Kd5 {[%emt 0:01:11]} 30. Ke3 {[%emt 0:00:04]} Rc8 {[%emt 0:00:17]} 31. Kd3 {[%emt 0:05:37]} b5 {[%emt 0:03:46]} 32. c3 {[%emt 0:01:19]} Rc4 {[%emt 0:03:13]} 33. a3 {[%emt 0:04:43]} bxc3 {[%emt 0:01:49]} 34. bxc3 {[%emt 0:00:02]} b4 {[%emt 0:00:33]} 35. axb4 {[%emt 0:00:39]} axb4 {[%emt 0:00:02]} 36. cxb4 {[%emt 0:05:57]} Rxd4+ {[%emt 0:04:36]} 37. Ke3 {[%emt 0:00:20]} Rxd2 {[%emt 0:00:01]} 38. Kxd2 {[%emt 0:00:02]} Kc4 {[%emt 0:00:01]} 39. Ke3 {[%emt 0:00:26]} f5 {[%emt 0:04:36]} 40. b5 {[%emt 0:10:58]} Kxb5 {[%emt 0:00:03]} 41. Kd4 {[%emt 0:15:25]} f6 {[%emt 0:00:08]} 42. Kd3 {[%emt 0:00:12]} Kc5 {[%emt 0:00:10]} 43. Kc3 {[%emt 0:00:05]} Kd5 {[%emt 0:00:38]} 44. Kd3 {[%emt 0:00:50]} e5 {[%emt 0:00:22]} 45. fxe5 {[%emt 0:00:25]} fxe5 {[%emt 0:00:06]} 46. f3 {[%emt 0:00:02]} f4 {[%emt 0:01:41]} 47. Ke2 {[%emt 0:01:04]} Kc4 {[%emt 0:00:10]} 48. Kd2 {[%emt 0:00:23]} Kd4 {[%emt 0:00:01]} 49. Ke2 {[%emt 0:00:07]} Kc3 {[%emt 0:00:04]} 0-1

[Event "23rd Hoogeveen Open 2019"]
[Site "Hoogeveen"]
[Date "2019.10.21"]
[Round "4.16"]
[White "Van Dorp, Folke"]
[Black "De Jong, Migchiel"]
[Result "1-0"]
[ECO "C00"]
[WhiteElo "2086"]
[BlackElo "2330"]
[Annotator "NA"]
[PlyCount "107"]
[EventDate "2019.10.19"]
[EventType "swiss"]
[EventCountry "NED"]
[SourceTitle "playchess.com"]
[Source "ChessBase"]
[SourceQuality "1"]
[TimeControl "40/5400+30:1800+30"]

1. e4 {[%emt 0:01:12]} e6 {[%emt 0:00:02]} 2. d3 {[%emt 0:00:35]} d5 {[%emt 0:00:19]} 3. Nd2 {[%emt 0:00:02]} Nf6 {[%emt 0:00:33]} 4. Ngf3 {[%emt 0:00:25]} b6 {[%emt 0:00:38]} 5. c3 {[%emt 0:04:10]} c5 {[%emt 0:04:44]} 6. g3 {[%emt 0:02:36]} Be7 {[%emt 0:00:54]} 7. Bg2 {[%emt 0:00:57]} Ba6 {[%emt 0:00:15]} 8. e5 {[%emt 0:04:15]} Nfd7 {[%emt 0:00:16]} 9. Qe2 {[%emt 0:01:17]} Nc6 {[%emt 0:01:02]} 10. O-O {[%emt 0:01:17]} g5 {[%emt 0:00:58]} 11. c4 {[%emt 0:02:56]} g4 {[%emt 0:04:10]} 12. cxd5 {[%emt 0:01:17]} gxf3 {[%emt 0:01:02]} 13. Nxf3 {[%emt 0:00:39]} Nb4 {[%emt 0:02:46]} 14. dxe6 {[%emt 0:01:11]} fxe6 {[%emt 0:00:15]} 15. Rd1 {[%emt 0:10:01]} Nf8 {[%emt 0:05:11]} 16. Ng5 {[%emt 0:05:29]} Bxg5 {[%emt 0:01:23]} 17. Qh5+ {[%emt 0:01:07]} Kd7 {[%emt 0:02:10]} 18. Bxg5 {[%emt 0:00:48]} Qe8 {[%emt 0:00:30]} 19. Qf3 {[%emt 0:03:13]} Nd5 {[%emt 0:04:05]} 20. d4 {[%emt 0:04:16]} Bb7 {[%emt 0:21:21]} 21. dxc5 {[%emt 0:01:01]} Ng6 {[%emt 0:01:26]} 22. Bf6 {[%emt 0:02:35]} Rg8 {[%emt 0:03:41]} 23. Rac1 {[%emt 0:05:52]} Qf7 {[%emt 0:07:14]} 24. Qb3 {[%emt 0:09:26]} Rgc8 {[%emt 0:02:42]} 25. cxb6 {[%emt 0:01:53]} axb6 {[%emt 0:00:53]} 26. Bxd5 {[%emt 0:00:22]} exd5 {[%emt 0:01:15]} 27. Qxb6 {[%emt 0:03:42]} Ke8 {[%emt 0:00:54]} 28. f4 {[%emt 0:17:56]} d4 {[%emt 0:09:19]} 29. Rxc8+ {[%emt 0:04:54]} Rxc8 {[%emt 0:00:07]} 30. Rxd4 {[%emt 0:00:22]} Rc1+ {[%emt 0:04:24]} 31. Kf2 {[%emt 0:00:06]} Qc7 {[%emt 0:00:56]} 32. Qe6+ {[%emt 0:00:34]} Ne7 {[%emt 0:00:20]} 33. Qxe7+ {[%emt 0:02:06]} Qxe7 {[%emt 0:00:06]} 34. Bxe7 {[%emt 0:00:05]} Kxe7 {[%emt 0:00:15]} 35. Rb4 {[%emt 0:00:45]} Rc2+ {[%emt 0:00:34]} 36. Ke3 {[%emt 0:00:10]} Bd5 {[%emt 0:00:28]} 37. f5 {[%emt 0:02:15]} Rxh2 {[%emt 0:00:38]} 38. a3 {[%emt 0:00:40]} h5 {[%emt 0:01:26]} 39. Rb5 {[%emt 0:01:00]} Bc6 {[%emt 0:00:49]} 40. Rb6 {[%emt 0:00:17]} Kd7 {[%emt 0:00:34]} 41. Kf4 {[%emt 0:31:43]} Rf2+ {[%emt 0:30:56]} 42. Kg5 {[%emt 0:01:48]} Be4 {[%emt 0:02:21]} 43. e6+ {[%emt 0:02:09]} Ke7 {[%emt 0:00:18]} 44. Rb5 {[%emt 0:00:54]} Rf3 {[%emt 0:00:41]} 45. g4 {[%emt 0:00:00]} hxg4 {[%emt 0:00:00]} 46. Kxg4 {[%emt 0:00:00]} Kf6 {[%emt 0:00:00]} 47. e7 {[%emt 0:00:00]} Kxe7 {[%emt 0:00:00]} 48. Re5+ {[%emt 0:00:00]} Kf6 {[%emt 0:00:00]} 49. Re6+ {[%emt 0:00:00]} Kf7 {[%emt 0:00:00]} 50. Rxe4 {[%emt 0:00:00]} Rf2 {[%emt 0:00:00]} 51. Rb4 {[%emt 0:00:00]} Rg2+ {[%emt 0:00:00]} 52. Kf3 {[%emt 0:00:00]} Rh2 {[%emt 0:00:00]} 53. Rb6 {[%emt 0:00:00]} Rh4 {[%emt 0:00:00]} 54. b3 {[%emt 0:00:00]} 1-0

[Event "23rd Hoogeveen Open 2019"]
[Site "Hoogeveen"]
[Date "2019.10.21"]
[Round "4.17"]
[White "Moksh Amit Doshi"]
[Black "Djukic, Sandra"]
[Result "1-0"]
[ECO "D20"]
[WhiteElo "2328"]
[BlackElo "2179"]
[Annotator "NA"]
[PlyCount "84"]
[EventDate "2019.10.19"]
[EventType "swiss"]
[EventCountry "NED"]
[SourceTitle "playchess.com"]
[Source "ChessBase"]
[SourceQuality "1"]
[TimeControl "40/5400+30:1800+30"]

1. d4 {[%emt 0:02:03]} d5 {[%emt 0:00:00]} 2. c4 {[%emt 0:00:10]} dxc4 {[%emt 0:00:00]} 3. e4 {[%emt 0:00:21]} Nf6 {[%emt 0:00:21]} 4. e5 {[%emt 0:00:05]} Nd5 {[%emt 0:00:05]} 5. Bxc4 {[%emt 0:00:07]} Nb6 {[%emt 0:00:08]} 6. Bb3 {[%emt 0:00:06]} Nc6 {[%emt 0:00:11]} 7. Ne2 {[%emt 0:00:07]} Bg4 {[%emt 0:00:26]} 8. f3 {[%emt 0:00:41]} Bf5 {[%emt 0:00:40]} 9. Nbc3 {[%emt 0:00:21]} e6 {[%emt 0:01:06]} 10. O-O {[%emt 0:02:01]} h5 {[%emt 0:21:45]} 11. Be3 {[%emt 0:02:42]} Nb4 {[%emt 0:03:26]} 12. Ng3 {[%emt 0:06:05]} Bd3 {[%emt 0:03:37]} 13. Rf2 {[%emt 0:03:25]} Bc4 {[%emt 0:03:05]} 14. Nge4 {[%emt 0:03:19]} Bxb3 {[%emt 0:03:15]} 15. Qxb3 {[%emt 0:00:43]} N4d5 {[%emt 0:10:51]} 16. Bg5 {[%emt 0:01:23]} Be7 {[%emt 0:00:20]} 17. Bxe7 {[%emt 0:00:42]} Nxe7 {[%emt 0:00:03]} 18. Rd1 {[%emt 0:05:06]} Ned5 {[%emt 0:13:58]} 19. a4 {[%emt 0:03:28]} Rb8 {[%emt 0:08:56]} 20. f4 {[%emt 0:03:23]} Ne7 {[%emt 0:14:50]} 21. f5 {[%emt 0:02:22]} exf5 {[%emt 0:00:15]} 22. Ng5 {[%emt 0:02:50]} O-O {[%emt 0:03:53]} 23. e6 {[%emt 0:01:50]} f6 {[%emt 0:00:12]} 24. Nf7 {[%emt 0:00:07]} Qe8 {[%emt 0:00:02]} 25. a5 {[%emt 0:00:18]} Nbc8 {[%emt 0:00:09]} 26. Nb5 {[%emt 0:06:07]} Qc6 {[%emt 0:03:12]} 27. d5 {[%emt 0:00:41]} Qc5 {[%emt 0:00:05]} 28. Qf3 {[%emt 0:03:30]} g6 {[%emt 0:04:32]} 29. Qf4 {[%emt 0:05:45]} Qxb5 {[%emt 0:02:59]} 30. Qxc7 {[%emt 0:02:22]} Nb6 {[%emt 0:02:02]} 31. axb6 {[%emt 0:03:52]} Nxd5 {[%emt 0:00:30]} 32. Qc1 {[%emt 0:00:30]} f4 {[%emt 0:00:20]} 33. Nd6 {[%emt 0:03:53]} Qb3 {[%emt 0:00:23]} 34. Qb1 {[%emt 0:01:41]} Ne7 {[%emt 0:00:47]} 35. bxa7 {[%emt 0:01:56]} Rbd8 {[%emt 0:00:24]} 36. Qc2 {[%emt 0:00:55]} Qxe6 {[%emt 0:00:37]} 37. Re2 {[%emt 0:00:05]} Qd7 {[%emt 0:00:15]} 38. Qb3+ {[%emt 0:02:37]} Kh7 {[%emt 0:00:46]} 39. a8=Q {[%emt 0:00:35]} Rxa8 {[%emt 0:00:14]} 40. Nb5 {[%emt 0:00:04]} Qc6 {[%emt 0:00:44]} 41. Rxe7+ {[%emt 0:30:09]} Kh6 {[%emt 0:30:03]} 42. Nd4 {[%emt 0:03:07]} Qd6 {[%emt 0:00:04]} 1-0